[Event "Djerba Festival Open-B 2025"]
[Site "Djerba"]
[Date "2025.02.21"]
[Round "5.16"]
[White "Mileiko, Juris"]
[Black "Nassr, Lina"]
[Result "0-1"]
[Annotator "RC"]
[ECO "B42"]
[WhiteElo "1716"]
[BlackElo "1934"]
[PlyCount "67"]
[EventDate "2025.02.15"]
[EventType "swiss"]
[EventCountry "TUN"]
[SourceTitle "playchess.com"]
[Source "ChessBase"]
[SourceQuality "1"]
[TimeControl "5400+30"]

1. e4 {[%emt 0:00:05]} c5 {[%emt 0:00:37]} 2. Nf3 {[%emt 0:00:05]} e6 {[%emt 0:00:06]} 3. d4 {[%emt 0:00:04]} cxd4 {[%emt 0:00:06]} 4. Nxd4 {[%emt 0:00:04]} a6 {[%emt 0:00:24]} 5. Bd3 {[%emt 0:01:20]} Bc5 {[%emt 0:00:46]} 6. Nb3 {[%emt 0:00:45]} Ba7 {[%emt 0:00:31]} 7. Nc3 {[%emt 0:02:57]} Nc6 {[%emt 0:01:18]} 8. Qe2 {[%emt 0:05:04]} Nge7 {[%emt 0:04:22]} 9. Bf4 {[%emt 0:04:48]} d6 {[%emt 0:08:54]} 10. O-O-O {[%emt 0:04:32]} Ng6 {[%emt 0:07:01]} 11. Bg3 {[%emt 0:01:08]} e5 {[%emt 0:07:20]} 12. h4 {[%emt 0:02:53]} h5 {[%emt 0:00:59]} 13. Nd5 {[%emt 0:04:56]} Be6 {[%emt 0:00:56]} 14. c3 {[%emt 0:03:41]} b5 {[%emt 0:06:14]} 15. Kb1 {[%emt 0:02:12]} Rb8 {[%emt 0:00:30]} 16. Kc1 {[%emt 0:00:49]} Ra8 {[%emt 0:00:30]} 17. Kb1 {[%emt 0:00:11]} Rb8 {[%emt 0:08:29]} 18. f3 {[%emt 0:07:49]} O-O {[%emt 0:09:48]} 19. Be1 {[%emt 0:07:08]} Bxd5 {[%emt 0:05:23]} 20. exd5 {[%emt 0:00:21]} Nf4 {[%emt 0:00:16]} 21. Qe4 {[%emt 0:01:32]} f5 {[%emt 0:01:12]} 22. Qxf5 {[%emt 0:03:17]} Rxf5 {[%emt 0:00:06]} 23. Bxf5 {[%emt 0:00:03]} Ne7 {[%emt 0:02:43]} 24. g3 {[%emt 0:04:18]} Nxf5 {[%emt 0:00:31]} 25. gxf4 {[%emt 0:00:08]} exf4 {[%emt 0:00:20]} 26. Nd2 {[%emt 0:01:52]} Ne3 {[%emt 0:02:49]} 27. Bf2 {[%emt 0:03:16]} Nxd1 {[%emt 0:01:28]} 28. Bxa7 {[%emt 0:00:09]} Rb7 {[%emt 0:00:06]} 29. Bd4 {[%emt 0:00:20]} Ne3 {[%emt 0:00:07]} 30. Ne4 {[%emt 0:01:09]} Nf5 {[%emt 0:00:56]} 31. Bf2 {[%emt 0:00:35]} Ng3 {[%emt 0:01:22]} 32. Rf1 {[%emt 0:00:00]} Nf5 {[%emt 0:00:00]} 33. Rh1 {[%emt 0:01:00]} Ng3 {[%emt 0:01:00]} 34. Rf1 0-1

[Event "Djerba Festival Open-B 2025"]
[Site "Djerba"]
[Date "2025.02.21"]
[Round "5.17"]
[White "Abokrais, Kaled"]
[Black "Nayaradou, Philippe"]
[Result "1/2-1/2"]
[Annotator "RC"]
[ECO "B12"]
[WhiteElo "1902"]
[BlackElo "1783"]
[PlyCount "111"]
[EventDate "2025.02.15"]
[EventType "swiss"]
[EventCountry "TUN"]
[SourceTitle "playchess.com"]
[Source "ChessBase"]
[SourceQuality "1"]
[TimeControl "5400+30"]

1. e4 {[%emt 0:00:03]} c6 {[%emt 0:00:14]} 2. d4 {[%emt 0:00:41]} d5 {[%emt 0:00:06]} 3. e5 {[%emt 0:00:30]} Bf5 {[%emt 0:00:09]} 4. Bd3 {[%emt 0:00:28]} Bxd3 {[%emt 0:00:21]} 5. Qxd3 {[%emt 0:00:08]} e6 {[%emt 0:00:06]} 6. Ne2 {[%emt 0:00:52]} Nd7 {[%emt 0:00:58]} 7. O-O {[%emt 0:00:28]} Ne7 {[%emt 0:00:40]} 8. Ng3 {[%emt 0:08:16]} c5 {[%emt 0:01:37]} 9. c3 {[%emt 0:00:51]} Nc6 {[%emt 0:00:19]} 10. Nd2 {[%emt 0:03:33]} Qb6 {[%emt 0:06:43]} 11. Nf3 {[%emt 0:01:41]} Rc8 {[%emt 0:01:39]} 12. Rb1 {[%emt 0:02:12]} cxd4 {[%emt 0:01:28]} 13. cxd4 {[%emt 0:00:41]} Be7 {[%emt 0:10:15]} 14. Re1 {[%emt 0:01:28]} Nb4 {[%emt 0:02:18]} 15. Qb3 {[%emt 0:01:38]} Nc2 {[%emt 0:00:45]} 16. Qxb6 {[%emt 0:01:58]} Nxb6 {[%emt 0:00:08]} 17. Rd1 {[%emt 0:03:40]} Nb4 {[%emt 0:00:11]} 18. Bd2 {[%emt 0:06:00]} O-O {[%emt 0:03:10]} 19. a3 {[%emt 0:04:03]} Nc6 {[%emt 0:00:09]} 20. Bc3 {[%emt 0:03:10]} a6 {[%emt 0:05:34]} 21. Ne2 {[%emt 0:02:40]} Na7 {[%emt 0:09:31]} 22. h3 {[%emt 0:03:15]} Rc6 {[%emt 0:01:47]} 23. Rd3 {[%emt 0:01:59]} Rfc8 {[%emt 0:00:58]} 24. Nd2 {[%emt 0:06:24]} Nc4 {[%emt 0:09:53]} 25. Nxc4 {[%emt 0:05:53]} Rxc4 {[%emt 0:00:16]} 26. b3 {[%emt 0:04:05]} R4c6 {[%emt 0:00:24]} 27. a4 {[%emt 0:00:33]} h6 {[%emt 0:03:55]} 28. f4 {[%emt 0:00:37]} f5 {[%emt 0:02:17]} 29. Rf1 {[%emt 0:00:52]} b5 {[%emt 0:01:01]} 30. axb5 {[%emt 0:02:33]} Nxb5 {[%emt 0:01:07]} 31. Rff3 {[%emt 0:00:15]} Kf7 {[%emt 0:02:15]} 32. g4 {[%emt 0:05:52]} g6 {[%emt 0:00:46]} 33. Kf2 {[%emt 0:05:44]} Bd8 {[%emt 0:01:39]} 34. Bb4 {[%emt 0:02:02]} Bb6 {[%emt 0:02:03]} 35. Ke3 {[%emt 0:02:34]} a5 {[%emt 0:01:49]} 36. Bd2 {[%emt 0:01:59]} Rc2 {[%emt 0:03:33]} 37. Rf2 {[%emt 0:05:13]} Rb2 {[%emt 0:02:16]} 38. gxf5 {[%emt 0:03:54]} gxf5 {[%emt 0:00:16]} 39. Rf1 {[%emt 0:03:43]} Rcc2 {[%emt 0:02:29]} 40. Rc1 {[%emt 0:00:38]} Na3 {[%emt 0:00:57]} 41. Rxc2 {[%emt 0:03:43]} Nxc2+ {[%emt 0:00:12]} 42. Kf3 {[%emt 0:00:14]} Nb4 {[%emt 0:09:38]} 43. Bxb4 {[%emt 0:00:33]} axb4 {[%emt 0:00:07]} 44. Ke3 {[%emt 0:01:59]} Kg6 {[%emt 0:00:35]} 45. Ng1 {[%emt 0:01:20]} Rg2 {[%emt 0:01:54]} 46. Ne2 {[%emt 0:00:20]} Rh2 {[%emt 0:01:06]} 47. Ng1 {[%emt 0:00:14]} Kh5 {[%emt 0:01:49]} 48. Rd1 {[%emt 0:00:50]} Rc2 {[%emt 0:00:13]} 49. Ne2 {[%emt 0:00:21]} Kh4 {[%emt 0:01:12]} 50. Rg1 {[%emt 0:01:00]} Kh5 {[%emt 0:02:56]} 51. Rg7 {[%emt 0:00:56]} Rc7 {[%emt 0:00:07]} 52. Rxc7 {[%emt 0:01:07]} Bxc7 {[%emt 0:00:07]} 53. Kf3 {[%emt 0:00:00]} Kh4 {[%emt 0:00:11]} 54. Kg2 {[%emt 0:00:03]} Bb6 {[%emt 0:00:07]} 55. Kh2 {[%emt 0:02:14]} Kh5 {[%emt 0:11:44]} 56. Ng3+ {[%emt 0:00:30]} 1/2-1/2

[Event "Djerba Festival Open-B 2025"]
[Site "Djerba"]
[Date "2025.02.21"]
[Round "5.18"]
[White "Minde, Baptiste"]
[Black "Baba, Mouadh"]
[Result "1-0"]
[Annotator "NA RC"]
[ECO "D02"]
[WhiteElo "1896"]
[BlackElo "1688"]
[PlyCount "77"]
[EventDate "2025.02.15"]
[EventType "swiss"]
[EventCountry "TUN"]
[SourceTitle "playchess.com"]
[Source "ChessBase"]
[SourceQuality "1"]
[TimeControl "5400+30"]

1. d4 {[%emt 0:00:06]} Nf6 {[%emt 0:01:10]} 2. Bf4 {[%emt 0:01:07]} d5 {[%emt 0:00:33]} 3. e3 {[%emt 0:00:13]} e6 {[%emt 0:00:12]} 4. Nf3 {[%emt 0:00:06]} c5 {[%emt 0:01:20]} 5. Nbd2 {[%emt 0:00:58]} Nc6 {[%emt 0:01:01]} 6. c3 {[%emt 0:00:15]} Nh5 {[%emt 0:01:08]} 7. Bg5 {[%emt 0:02:19]} Qb6 {[%emt 0:00:19]} 8. Rb1 {[%emt 0:03:48]} h6 {[%emt 0:00:37]} 9. Bh4 {[%emt 0:02:48]} g5 {[%emt 0:00:45]} 10. Bg3 {[%emt 0:01:26]} Nxg3 {[%emt 0:00:08]} 11. hxg3 {[%emt 0:00:02]} g4 {[%emt 0:00:11]} 12. Ne5 {[%emt 0:05:40]} Nxe5 {[%emt 0:10:00]} 13. dxe5 {[%emt 0:00:05]} h5 {[%emt 0:01:18]} 14. Be2 {[%emt 0:03:40]} Bg7 {[%emt 0:04:20]} 15. Qa4+ {[%emt 0:00:35]} Bd7 {[%emt 0:00:53]} 16. Qf4 {[%emt 0:00:59]} O-O-O {[%emt 0:03:59]} 17. Qg5 {[%emt 0:10:33]} Rdg8 {[%emt 0:26:30]} 18. Rh2 {[%emt 1:04:50]} h4 19. Rxh4 {[%emt 0:00:00]} Bf6 {[%emt 0:13:30]} 20. Rxh8 {[%emt 0:00:00]} Bxg5 {[%emt 0:01:20]} 21. Rxg8+ {[%emt 0:00:00]} Bd8 {[%emt 0:00:07]} 22. Bxg4 {[%emt 0:00:00]} Bb5 {[%emt 0:02:20]} 23. b3 {[%emt 0:00:00]} Qc7 {[%emt 0:07:45]} 24. c4 {[%emt 0:00:00]} Bc6 {[%emt 0:01:56]} 25. f4 {[%emt 0:00:00]} Qd7 {[%emt 0:03:55]} 26. cxd5 {[%emt 0:00:00]} Qxd5 {[%emt 0:00:52]} 27. Bf3 {[%emt 0:00:00]} Qd3 {[%emt 0:00:23]} 28. Rd1 {[%emt 0:00:00]} Qxe3+ {[%emt 0:02:39]} 29. Kf1 {[%emt 0:00:00]} Qd3+ {[%emt 0:07:17]} 30. Be2 {[%emt 0:00:00]} Qh7 {[%emt 0:00:52]} 31. Rg4 {[%emt 0:00:00]} Qh1+ {[%emt 0:00:09]} 32. Kf2 {[%emt 0:00:00]} Qxg2+ {[%emt 0:00:13]} 33. Ke3 {[%emt 0:00:00]} Bb6 {[%emt 0:05:45]} 34. Nc4 {[%emt 0:00:00]} Qe4+ {[%emt 0:00:02]} 35. Kf2 {[%emt 0:00:00]} Qg2+ {[%emt 0:00:49]} 36. Ke1 {[%emt 0:00:00]} Bb5 {[%emt 0:01:55]} 37. Nd6+ {[%emt 0:00:00]} Kc7 {[%emt 0:02:01]} 38. Nxb5+ {[%emt 0:00:00]} Kc6 {[%emt 0:00:42]} 39. Rd6# {[%emt 0:00:00]} 1-0

[Event "Djerba Festival Open-B 2025"]
[Site "Djerba"]
[Date "2025.02.21"]
[Round "5.19"]
[White "Cornette, Francois"]
[Black "MEZGOURI NOUREDDINE"]
[Result "0-1"]
[Annotator "NA RC"]
[ECO "B01"]
[WhiteElo "1680"]
[BlackElo "1891"]
[PlyCount "70"]
[EventDate "2025.02.15"]
[EventType "swiss"]
[EventCountry "TUN"]
[SourceTitle "playchess.com"]
[Source "ChessBase"]
[SourceQuality "1"]
[TimeControl "5400+30"]

1. e4 {[%emt 0:00:05]} d5 {[%emt 0:00:10]} 2. exd5 {[%emt 0:00:20]} Nf6 {[%emt 0:00:08]} 3. d4 {[%emt 0:00:16]} Nxd5 {[%emt 0:00:07]} 4. Nf3 {[%emt 0:01:59]} Bf5 {[%emt 0:00:31]} 5. Bc4 {[%emt 0:01:55]} Nc6 {[%emt 0:00:41]} 6. O-O {[%emt 0:01:10]} e6 {[%emt 0:01:45]} 7. c3 {[%emt 0:00:23]} Be7 {[%emt 0:00:38]} 8. Bd3 {[%emt 0:03:09]} Bg4 {[%emt 0:00:46]} 9. Nbd2 {[%emt 0:02:11]} O-O {[%emt 0:01:18]} 10. h3 {[%emt 0:01:10]} Bh5 {[%emt 0:00:22]} 11. Re1 {[%emt 0:02:31]} Bf6 {[%emt 0:01:28]} 12. Qc2 {[%emt 0:00:18]} Bg6 {[%emt 0:00:47]} 13. Bxg6 {[%emt 0:00:45]} hxg6 {[%emt 0:00:12]} 14. Ne4 {[%emt 0:00:25]} Be7 {[%emt 0:01:09]} 15. Neg5 {[%emt 0:04:55]} Bxg5 {[%emt 0:10:59]} 16. Nxg5 {[%emt 0:01:47]} Nf6 {[%emt 0:01:05]} 17. Bf4 {[%emt 0:04:51]} Qd5 {[%emt 0:02:36]} 18. Nf3 {[%emt 0:02:53]} Rac8 {[%emt 0:01:03]} 19. Ne5 {[%emt 0:05:31]} Nh5 {[%emt 0:09:41]} 20. Nxc6 {[%emt 0:02:12]} Qxc6 {[%emt 0:00:16]} 21. Bg5 {[%emt 0:06:04]} Nf6 {[%emt 0:02:15]} 22. Qd3 {[%emt 0:02:59]} Rcd8 {[%emt 0:00:56]} 23. Bxf6 {[%emt 0:01:13]} gxf6 {[%emt 0:00:20]} 24. Re3 {[%emt 0:00:14]} e5 {[%emt 0:01:38]} 25. Rg3 {[%emt 0:00:32]} Kg7 {[%emt 0:01:35]} 26. b3 {[%emt 0:02:53]} exd4 {[%emt 0:01:20]} 27. c4 {[%emt 0:00:11]} Qd6 {[%emt 0:00:28]} 28. Rd1 {[%emt 0:00:48]} c5 {[%emt 0:00:13]} 29. a4 {[%emt 0:04:10]} Rfe8 {[%emt 0:02:17]} 30. Rg4 {[%emt 0:01:16]} Re5 {[%emt 0:01:18]} 31. Re4 {[%emt 0:04:17]} Rde8 {[%emt 0:00:22]} 32. Rde1 {[%emt 0:00:15]} b6 {[%emt 0:00:48]} 33. g3 {[%emt 0:01:28]} Rxe4 {[%emt 0:00:22]} 34. Rxe4 {[%emt 0:00:07]} Rxe4 {[%emt 0:00:12]} 35. Qxe4 {[%emt 0:00:27]} Qe6 {[%emt 0:00:31]} 0-1

[Event "Djerba Festival Open-B 2025"]
[Site "Djerba"]
[Date "2025.02.21"]
[Round "5.20"]
[White "Tkitek Mohamed Mejed"]
[Black "Mendili, Jahed"]
[Result "1-0"]
[Annotator "NA RC"]
[ECO "D32"]
[WhiteElo "1875"]
[BlackElo "1771"]
[PlyCount "179"]
[EventDate "2025.02.15"]
[EventType "swiss"]
[EventCountry "TUN"]
[SourceTitle "playchess.com"]
[Source "ChessBase"]
[SourceQuality "1"]
[TimeControl "5400+30"]

1. d4 {[%emt 0:00:02]} Nf6 {[%emt 0:08:42]} 2. c4 {[%emt 0:00:25]} e6 {[%emt 0:01:51]} 3. Nf3 {[%emt 0:00:09]} d5 {[%emt 0:00:07]} 4. Nc3 {[%emt 0:00:42]} c5 {[%emt 0:00:34]} 5. Bg5 {[%emt 0:03:40]} Nc6 {[%emt 0:06:57]} 6. cxd5 {[%emt 0:02:22]} exd5 {[%emt 0:04:02]} 7. e3 {[%emt 0:00:11]} Be6 {[%emt 0:05:02]} 8. Bb5 {[%emt 0:01:45]} Be7 {[%emt 0:02:01]} 9. Ne5 {[%emt 0:02:43]} Qc7 {[%emt 0:01:53]} 10. Qa4 {[%emt 0:01:07]} O-O {[%emt 0:11:21]} 11. Bxc6 {[%emt 0:02:54]} bxc6 {[%emt 0:00:12]} 12. Qxc6 {[%emt 0:00:12]} Qb8 {[%emt 0:00:33]} 13. Qb5 {[%emt 0:01:23]} Qc7 {[%emt 0:00:10]} 14. Qe2 {[%emt 0:00:38]} Rab8 {[%emt 0:03:25]} 15. O-O {[%emt 0:00:23]} cxd4 {[%emt 0:03:20]} 16. exd4 {[%emt 0:00:20]} Qb6 {[%emt 0:00:10]} 17. Qd3 {[%emt 0:03:46]} h6 {[%emt 0:01:58]} 18. Bh4 {[%emt 1:16:48]} Rfc8 {[%emt 0:17:47]} 19. Na4 {[%emt 0:00:00]} Qa5 {[%emt 0:03:28]} 20. b3 {[%emt 0:00:00]} Rb7 {[%emt 0:05:59]} 21. h3 {[%emt 0:00:00]} Rbc7 {[%emt 0:00:49]} 22. Rfe1 {[%emt 0:00:00]} Bb4 {[%emt 0:01:40]} 23. Re2 {[%emt 0:00:00]} Ne4 {[%emt 0:00:41]} 24. Rd1 {[%emt 0:00:00]} f6 {[%emt 0:02:19]} 25. f3 {[%emt 0:00:00]} Bf5 {[%emt 0:14:52]} 26. fxe4 {[%emt 0:00:00]} dxe4 {[%emt 0:00:10]} 27. Qe3 {[%emt 0:00:00]} fxe5 {[%emt 0:00:19]} 28. dxe5 {[%emt 0:00:00]} Rc2 {[%emt 0:01:32]} 29. e6 {[%emt 0:00:00]} Rxe2 {[%emt 0:01:39]} 30. Qxe2 {[%emt 0:00:00]} Qe5 {[%emt 0:00:52]} 31. e7 {[%emt 0:00:00]} Bxe7 {[%emt 0:00:45]} 32. Bxe7 {[%emt 0:00:00]} Qxe7 {[%emt 0:00:08]} 33. Nb2 {[%emt 0:00:00]} Qc5+ {[%emt 0:00:52]} 34. Kh2 {[%emt 0:00:00]} Qc2 {[%emt 0:00:21]} 35. Rd2 {[%emt 0:00:00]} Qc7+ {[%emt 0:00:12]} 36. Kg1 {[%emt 0:00:00]} Qg3 {[%emt 0:00:05]} 37. Nc4 {[%emt 0:00:00]} Bxh3 {[%emt 0:01:33]} 38. Qxe4 {[%emt 0:00:00]} Rf8 {[%emt 0:00:24]} 39. Qe3 {[%emt 0:00:00]} Qxe3+ {[%emt 0:00:19]} 40. Nxe3 {[%emt 0:00:00]} Re8 {[%emt 0:00:52]} 41. Nd5 {[%emt 0:00:00]} Bf5 {[%emt 0:00:23]} 42. Kf2 {[%emt 0:00:00]} Kf7 {[%emt 0:00:12]} 43. Ne3 {[%emt 0:00:00]} Bg6 {[%emt 0:00:26]} 44. Rd6 {[%emt 0:00:00]} Re7 {[%emt 0:00:54]} 45. Nd5 {[%emt 0:00:00]} Re5 {[%emt 0:00:31]} 46. Nf4 {[%emt 0:00:00]} Bf5 {[%emt 0:00:15]} 47. Ra6 {[%emt 0:00:00]} Re7 {[%emt 0:00:18]} 48. Ra5 {[%emt 0:00:00]} g6 {[%emt 0:00:39]} 49. Ne2 {[%emt 0:00:00]} h5 {[%emt 0:00:32]} 50. Nd4 {[%emt 0:00:00]} Be4 {[%emt 0:00:34]} 51. Nb5 {[%emt 0:00:00]} Re5 {[%emt 0:00:48]} 52. Rxa7+ {[%emt 0:00:00]} Kf6 {[%emt 0:00:05]} 53. Nc3 {[%emt 0:00:00]} Bf5 {[%emt 0:00:25]} 54. b4 {[%emt 0:00:00]} Re8 {[%emt 0:00:26]} 55. a4 {[%emt 0:00:00]} Rc8 {[%emt 0:00:19]} 56. Nd5+ {[%emt 0:00:00]} Ke5 {[%emt 0:00:53]} 57. Ne3 {[%emt 0:00:00]} Be4 {[%emt 0:00:46]} 58. b5 {[%emt 0:00:00]} Kd6 {[%emt 0:00:24]} 59. b6 {[%emt 0:00:00]} Ra8 {[%emt 0:00:42]} 60. b7 {[%emt 0:00:00]} Rb8 {[%emt 0:00:10]} 61. Nc4+ {[%emt 0:00:00]} Kc5 {[%emt 0:00:35]} 62. Nd2 {[%emt 0:03:58]} Bxb7 {[%emt 0:00:40]} 63. Ra5+ {[%emt 0:00:53]} Kb4 {[%emt 0:00:18]} 64. Rg5 {[%emt 0:00:02]} Kxa4 {[%emt 0:00:25]} 65. Rxg6 {[%emt 0:00:06]} Bc8 {[%emt 0:00:50]} 66. Rg8 {[%emt 0:01:09]} Rb2 {[%emt 0:00:17]} 67. Rxc8 {[%emt 0:00:15]} Rxd2+ {[%emt 0:00:05]} 68. Kg3 {[%emt 0:00:27]} Rd4 {[%emt 0:00:30]} 69. Rc5 {[%emt 0:00:19]} h4+ {[%emt 0:00:29]} 70. Kh3 {[%emt 0:00:03]} Kb4 {[%emt 0:00:27]} 71. Rh5 {[%emt 0:19:18]} Rd2 {[%emt 0:00:18]} 72. Rxh4+ {[%emt 0:00:00]} Kc5 {[%emt 0:00:05]} 73. Re4 {[%emt 0:00:00]} Kd5 {[%emt 0:00:13]} 74. Re8 {[%emt 0:00:00]} Rc2 {[%emt 0:00:24]} 75. g4 {[%emt 0:00:00]} Rc1 {[%emt 0:00:09]} 76. Kh4 {[%emt 0:00:00]} Rh1+ {[%emt 0:00:10]} 77. Kg5 {[%emt 0:00:00]} Kd6 {[%emt 0:00:36]} 78. Kg6 {[%emt 0:00:00]} Kd7 {[%emt 0:00:06]} 79. Re2 {[%emt 0:00:00]} Rg1 {[%emt 0:00:12]} 80. g5 {[%emt 0:00:00]} Rg3 {[%emt 0:00:21]} 81. Kf6 {[%emt 0:00:00]} Rf3+ {[%emt 0:00:09]} 82. Kg7 {[%emt 0:00:00]} Rf1 {[%emt 0:00:39]} 83. g6 {[%emt 0:00:00]} Rg1 {[%emt 0:00:16]} 84. Kf7 {[%emt 0:00:00]} Rf1+ {[%emt 0:00:06]} 85. Kg8 {[%emt 0:00:00]} Rg1 {[%emt 0:00:24]} 86. g7 {[%emt 0:00:00]} Rg3 {[%emt 0:00:39]} 87. Re5 {[%emt 0:00:00]} Rg2 {[%emt 0:00:14]} 88. Kh7 {[%emt 0:00:00]} Rh2+ {[%emt 0:00:04]} 89. Kg6 {[%emt 0:00:00]} Rg2+ {[%emt 0:00:09]} 90. Rg5 {[%emt 0:00:00]} 1-0

[Event "Djerba Festival Open-B 2025"]
[Site "Djerba"]
[Date "2025.02.21"]
[Round "5.21"]
[White "Weslati, Monem"]
[Black "Perrusset, Barbara"]
[Result "1-0"]
[Annotator "NA RC"]
[ECO "A13"]
[WhiteElo "1591"]
[BlackElo "1869"]
[PlyCount "89"]
[EventDate "2025.02.15"]
[EventType "swiss"]
[EventCountry "TUN"]
[SourceTitle "playchess.com"]
[Source "ChessBase"]
[SourceQuality "1"]
[TimeControl "5400+30"]

1. Nf3 {[%emt 0:00:30]} e6 {[%emt 0:00:17]} 2. c4 {[%emt 0:00:00]} d5 {[%emt 0:00:47]} 3. g3 {[%emt 0:00:35]} Nf6 {[%emt 0:00:38]} 4. Bg2 {[%emt 0:01:21]} dxc4 {[%emt 0:00:53]} 5. Qc2 {[%emt 0:02:58]} Nbd7 {[%emt 0:04:18]} 6. Qxc4 {[%emt 0:02:27]} a6 {[%emt 0:00:47]} 7. Qc2 {[%emt 0:04:05]} c5 {[%emt 0:00:34]} 8. Nc3 {[%emt 0:01:01]} Rb8 {[%emt 0:09:23]} 9. d4 {[%emt 0:06:26]} Bd6 {[%emt 0:15:30]} 10. dxc5 {[%emt 0:07:16]} Nxc5 {[%emt 0:06:54]} 11. O-O {[%emt 0:08:15]} e5 {[%emt 0:03:41]} 12. Rd1 {[%emt 0:05:01]} Qc7 {[%emt 0:03:15]} 13. Bg5 {[%emt 0:06:35]} Nce4 {[%emt 0:03:28]} 14. Qd3 {[%emt 0:09:57]} Nxg5 {[%emt 0:05:24]} 15. Nxg5 {[%emt 0:01:47]} Be7 {[%emt 0:02:32]} 16. Nge4 {[%emt 0:03:34]} Nxe4 {[%emt 0:02:12]} 17. Nd5 {[%emt 0:02:42]} Qc5 {[%emt 0:11:41]} 18. Bxe4 {[%emt 0:01:52]} Bd8 {[%emt 0:07:59]} 19. Rac1 {[%emt 0:01:38]} Qb5 {[%emt 0:00:52]} 20. Qc2 {[%emt 0:05:45]} O-O {[%emt 0:03:55]} 21. Bxh7+ {[%emt 0:04:01]} Kh8 {[%emt 0:00:05]} 22. a4 {[%emt 0:04:01]} Qe8 {[%emt 0:00:27]} 23. Bf5 {[%emt 0:03:57]} Bxf5 {[%emt 0:01:04]} 24. Qxf5 {[%emt 0:00:13]} Qxa4 {[%emt 0:03:06]} 25. Qxe5 {[%emt 0:01:18]} Rc8 {[%emt 0:00:53]} 26. Rxc8 {[%emt 0:04:19]} Qxd1+ {[%emt 0:00:11]} 27. Kg2 {[%emt 0:00:02]} Kg8 {[%emt 0:02:14]} 28. Qd6 {[%emt 0:02:28]} Qxe2 {[%emt 0:05:57]} 29. Qxf8+ {[%emt 0:00:55]} Kh7 {[%emt 0:00:15]} 30. Rxd8 {[%emt 0:00:20]} Qe4+ {[%emt 0:00:13]} 31. f3 {[%emt 0:00:58]} Qc2+ {[%emt 0:01:25]} 32. Kf1 {[%emt 0:01:55]} Qd1+ {[%emt 0:00:06]} 33. Kf2 {[%emt 0:01:43]} Qd2+ {[%emt 0:00:06]} 34. Kg1 {[%emt 0:00:07]} Qd1+ {[%emt 0:01:03]} 35. Kg2 {[%emt 0:00:07]} Qc2+ {[%emt 0:00:56]} 36. Kh3 {[%emt 0:03:29]} Qf5+ {[%emt 0:00:07]} 37. g4 {[%emt 0:03:00]} Qxf3+ {[%emt 0:00:21]} 38. Kh4 {[%emt 0:00:02]} Qf2+ {[%emt 0:01:26]} 39. Kg5 {[%emt 0:00:01]} Qd2+ {[%emt 0:01:27]} 40. Nf4 {[%emt 0:00:05]} f6+ {[%emt 0:02:26]} 41. Kf5 {[%emt 0:00:19]} Qa5+ {[%emt 0:01:31]} 42. Rd5 {[%emt 0:00:07]} g6+ {[%emt 0:00:04]} 43. Kxf6 {[%emt 0:00:07]} Qb6+ {[%emt 0:00:12]} 44. Kg5 {[%emt 0:00:15]} Qd8+ 45. Qxd8 {[%emt 0:00:30]} 1-0

[Event "Djerba Festival Open-B 2025"]
[Site "Djerba"]
[Date "2025.02.21"]
[Round "5.22"]
[White "Louvrier Saint-Mary, Jean-Roger"]
[Black "Farouz, Paul"]
[Result "1-0"]
[Annotator "NA RC"]
[ECO "B14"]
[WhiteElo "1839"]
[BlackElo "1680"]
[PlyCount "89"]
[EventDate "2025.02.15"]
[EventType "swiss"]
[EventCountry "TUN"]
[SourceTitle "playchess.com"]
[Source "ChessBase"]
[SourceQuality "1"]
[TimeControl "5400+30"]

1. e4 {[%emt 1:31:00]} c6 {[%emt 1:31:00]} 2. d4 {[%emt 0:00:30]} d5 {[%emt 0:00:30]} 3. exd5 {[%emt 0:00:30]} cxd5 {[%emt 0:00:30]} 4. c4 {[%emt 0:00:30]} Nf6 {[%emt 0:00:30]} 5. Nc3 {[%emt 0:00:30]} g6 {[%emt 0:00:30]} 6. Bg5 {[%emt 0:00:30]} Bg7 {[%emt 0:00:30]} 7. Bxf6 {[%emt 0:00:30]} Bxf6 {[%emt 0:00:30]} 8. Nxd5 {[%emt 0:00:30]} Bg7 {[%emt 0:00:30]} 9. Nf3 {[%emt 0:00:30]} Bg4 {[%emt 0:00:30]} 10. h3 {[%emt 0:00:30]} Bxf3 {[%emt 0:00:30]} 11. Qxf3 {[%emt 0:00:30]} Nc6 {[%emt 0:00:30]} 12. Rd1 {[%emt 0:00:30]} O-O {[%emt 0:00:30]} 13. Bd3 {[%emt 0:00:30]} Nxd4 {[%emt 0:00:30]} 14. Qe4 {[%emt 0:00:30]} e6 {[%emt 0:00:30]} 15. Nc3 {[%emt 0:00:30]} Qb6 {[%emt 0:00:30]} 16. O-O {[%emt 0:00:30]} Nf5 {[%emt 0:00:30]} 17. Na4 {[%emt 0:00:30]} Qa5 {[%emt 0:00:30]} 18. Bc2 {[%emt 0:00:30]} b6 {[%emt 0:00:30]} 19. Rd7 {[%emt 0:00:30]} Rac8 {[%emt 0:00:30]} 20. a3 {[%emt 0:00:30]} Qa6 {[%emt 0:00:30]} 21. Bb3 {[%emt 0:00:30]} Rfd8 {[%emt 0:00:30]} 22. Rfd1 {[%emt 0:00:30]} Bf6 {[%emt 0:00:30]} 23. Rxd8+ {[%emt 0:00:30]} Bxd8 {[%emt 0:00:30]} 24. Rd7 {[%emt 0:00:30]} b5 {[%emt 0:00:30]} 25. Qd3 {[%emt 0:00:30]} Bf6 {[%emt 0:00:30]} 26. cxb5 {[%emt 0:00:30]} Rc1+ {[%emt 0:00:30]} 27. Kh2 {[%emt 0:00:30]} Qc8 {[%emt 0:00:30]} 28. Nc3 {[%emt 0:00:30]} Qc5 {[%emt 0:00:30]} 29. Ne4 {[%emt 0:00:30]} Be5+ {[%emt 0:00:30]} 30. g3 {[%emt 0:00:30]} Bxg3+ {[%emt 0:00:30]} 31. Qxg3 {[%emt 0:00:30]} Qxb5 {[%emt 0:00:30]} 32. Qd3 {[%emt 0:00:30]} Qe5+ {[%emt 0:00:30]} 33. Ng3 {[%emt 0:00:30]} Qf4 {[%emt 0:00:30]} 34. Qd2 {[%emt 0:00:30]} Qf3 {[%emt 0:00:30]} 35. Rd8+ {[%emt 0:00:30]} Kg7 {[%emt 0:00:30]} 36. Nxf5+ {[%emt 0:00:30]} exf5 {[%emt 0:00:30]} 37. Qd4+ {[%emt 0:00:30]} f6 {[%emt 0:00:30]} 38. Qxa7+ {[%emt 0:00:30]} Kh6 {[%emt 0:00:30]} 39. Qe3+ {[%emt 0:00:30]} Qxe3 {[%emt 0:00:30]} 40. fxe3 {[%emt 0:00:30]} Rb1 {[%emt 0:00:30]} 41. Rd2 {[%emt 0:00:30]} Kg5 {[%emt 0:00:30]} 42. Kg3 {[%emt 0:00:30]} h5 {[%emt 0:00:30]} 43. a4 {[%emt 0:00:30]} f4+ {[%emt 0:00:30]} 44. exf4+ {[%emt 0:00:30]} Kf5 {[%emt 0:00:30]} 45. Bc2+ {[%emt 0:00:30]} 1-0